bitfinex/quotes_BTCUSD_20240827
["timestamp","ask_amount","ask_price","bid_price","bid_amount"]
[1724769727214,0.48184183,62147.0,62146.0,0.026823]
[1724769727967,0.48184183,62147.0,62146.0,0.0875274]
[1724769729198,0.48184183,62147.0,62146.0,0.026823]
[1724769732366,0.48184183,62147.0,62146.0,0.415923]
[1724769740638,0.48184183,62147.0,62146.0,0.77278845]
[1724769741292,0.48184183,62147.0,62146.0,0.612823]
[1724769741944,0.48184183,62147.0,62146.0,0.026823]
[1724769742159,1.0364731,62147.0,62146.0,0.026823]
[1724769743247,0.96456683,62147.0,62146.0,0.026823]
[1724769744845,1.06044185,62147.0,62146.0,0.026823]
[1724769745058,0.96456683,62147.0,62146.0,0.026823]
[1724769747221,1.06045697,62147.0,62146.0,0.026823]
[1724769747643,1.38227397,62147.0,62146.0,0.026823]
[1724769747853,1.40624874,62147.0,62146.0,0.026823]
[1724769748090,0.96456683,62147.0,62146.0,0.026823]
[1724769748531,0.57772907,62147.0,62146.0,0.6472274]
[1724769748743,0.48184183,62147.0,62146.0,0.586423]
[1724769748951,0.48184183,62147.0,62146.0,0.58598319]
[1724769752341,0.55375894,62147.0,62146.0,0.58598319]
[1724769752541,0.48184183,62147.0,62146.0,0.58598319]
[1724769752802,0.55376188,62147.0,62146.0,0.58598319]
[1724769753015,0.55376004,62147.0,62146.0,0.58598319]
[1724769753277,0.48184183,62147.0,62146.0,0.58598319]
[1724769753710,1.28638383,62147.0,62146.0,0.58598319]
[1724769753847,1.40624002,62147.0,62146.0,0.02638319]
[1724769754224,1.63339332,62147.0,62146.0,0.02638319]
[1724769754660,1.31157632,62147.0,62146.0,0.02638319]
[1724769754879,0.48184183,62147.0,62146.0,0.59048319]
[1724769755311,0.55374758,62147.0,62146.0,0.59048319]
[1724769755519,0.48184183,62147.0,62146.0,0.59048319]
[1724769756919,0.55374532,62147.0,62146.0,0.59048319]
[1724769757118,0.48184183,62147.0,62146.0,0.59048319]
[1724769758920,0.48184183,62147.0,62146.0,0.64961361]
[1724769759124,0.52979341,62147.0,62146.0,0.64961361]
[1724769759618,0.48184183,62147.0,62146.0,0.80957906]
[1724769760060,0.48184183,62147.0,62146.0,0.75044864]
[1724769760481,0.48184183,62147.0,62146.0,0.59048319]
[1724769760955,0.48184183,62147.0,62146.0,0.564923]
[1724769761380,0.48184183,62147.0,62146.0,0.578923]
[1724769762232,0.52979888,62147.0,62146.0,0.578923]
[1724769762650,0.48184183,62147.0,62146.0,0.592923]
[1724769763101,0.48184183,62147.0,62146.0,0.578923]
[1724769763546,0.48184183,62147.0,62146.0,0.592923]
[1724769764610,0.48184183,62147.0,62146.0,0.6522974]
[1724769764822,0.48184183,62147.0,62146.0,0.81226285]
[1724769766221,0.48184183,62147.0,62146.0,0.79826285]
[1724769766648,0.48184183,62147.0,62146.0,0.81226285]
[1724769766860,0.48184183,62147.0,62146.0,0.79826285]
[1724769767075,0.48184183,62147.0,62146.0,0.91226285]
[1724769767330,0.48184183,62147.0,62146.0,0.89826285]
[1724769767777,0.48184183,62147.0,62146.0,0.91226285]
[1724769768718,0.48184183,62147.0,62146.0,0.89826285]
[1724769769781,0.48184183,62147.0,62146.0,0.88426285]
[1724769769991,0.48184183,62147.0,62146.0,0.89826285]
[1724769770199,0.48184183,62147.0,62146.0,0.91226285]
[1724769770411,0.50034183,62147.0,62146.0,0.89826285]
[1724769770622,0.50034183,62147.0,62146.0,0.88426285]
[1724769770831,0.50034183,62147.0,62146.0,0.91226285]
[1724769771285,0.50034183,62147.0,62146.0,0.89826285]
[1724769771698,0.50034183,62147.0,62146.0,1.12035889]
[1724769771908,0.50034183,62147.0,62146.0,1.14335889]
[1724769772123,0.50034183,62147.0,62146.0,1.12935889]
[1724769772364,0.50034183,62147.0,62146.0,1.14335889]
[1724769773206,0.50034183,62147.0,62146.0,1.15835889]
[1724769773416,0.47989634,62162.0,62146.0,1.14435889]
[1724769773622,0.47989634,62162.0,62152.0,0.22209604]
[1724769773831,0.4726,62164.0,62156.0,0.3838]
[1724769774042,0.48265,62161.0,62157.0,0.1]
[1724769774245,0.48265,62161.0,62153.0,0.1]
[1724769774453,0.48265,62161.0,62154.0,0.06777]
[1724769775132,0.48265,62161.0,62155.0,0.5777]
[1724769775337,0.48265,62161.0,62157.0,0.5777]
[1724769775539,0.48265,62161.0,62158.0,0.4838]
[1724769776455,0.48265,62161.0,62159.0,0.3718]
[1724769777525,0.48265,62161.0,62159.0,0.53176545]
[1724769777736,0.48265,62161.0,62160.0,0.3718]
[1724769780296,0.48265,62161.0,62160.0,0.3978]
[1724769780505,0.48265,62161.0,62160.0,0.3858]
[1724769780715,0.48265,62161.0,62160.0,0.3848]
[1724769780922,0.48265,62161.0,62160.0,0.3988]
[1724769781125,0.48265,62161.0,62160.0,0.47106655]
[1724769781337,0.48265,62161.0,62160.0,0.48306655]
[1724769781775,0.48265,62161.0,62160.0,0.3978]
[1724769782458,0.02520079,62177.0,62162.0,0.1938]
[1724769782705,0.11987539,62191.0,62160.0,0.97395783]
[1724769782706,0.47989634,62175.0,62167.0,0.41489604]
[1724769782918,0.48256,62173.0,62169.0,0.364]
[1724769783113,0.48256,62173.0,62170.0,0.15996545]
[1724769783328,0.48256,62173.0,62171.0,0.4917]
[1724769783533,0.48256,62173.0,62172.0,0.15996545]
[1724769783774,0.48256,62173.0,62172.0,0.25996545]
[1724769785753,0.48256,62173.0,62172.0,0.83066545]
[1724769785965,0.48256,62173.0,62172.0,1.08121298]
[1724769786806,0.381773,62173.0,62172.0,1.08121298]
[1724769787458,0.381773,62173.0,62172.0,1.06721298]
[1724769787668,0.381773,62173.0,62172.0,1.08121298]
[1724769787887,0.381773,62173.0,62172.0,1.06721298]
[1724769788696,0.381773,62173.0,62172.0,1.08121298]
[1724769789135,0.381773,62173.0,62172.0,1.06721298]
[1724769789355,0.381773,62173.0,62172.0,1.08121298]
[1724769789579,0.381773,62173.0,62172.0,1.09521298]
[1724769789799,0.381773,62173.0,62172.0,1.08121298]
[1724769790517,0.381773,62173.0,62172.0,1.09521298]
[1724769790974,0.381773,62173.0,62172.0,1.08121298]
[1724769791186,0.381773,62173.0,62172.0,1.09521298]
[1724769791521,0.58088183,62173.0,62172.0,0.028]
[1724769791772,1.44546483,62173.0,62172.0,0.028]
[1724769792011,2.25079628,62173.0,62172.0,0.014]
[1724769792252,2.25079628,62173.0,62172.0,0.028]
[1724769792489,1.88984545,62173.0,62172.0,0.028]
[1724769792739,0.160853,62169.0,62154.0,0.01431049]
[1724769792972,0.542629,62168.0,62154.0,0.01431049]
[1724769793196,0.381773,62168.0,62149.0,0.00321794]
[1724769793439,0.160858,62167.0,62150.0,0.15996545]
[1724769793675,0.381773,62166.0,62150.0,0.15996545]
[1724769794400,0.542632,62166.0,62150.0,0.15996545]
[1724769794643,0.381773,62166.0,62150.0,0.15996545]
[1724769794880,0.381773,62166.0,62151.0,0.56421774]
[1724769795138,0.381773,62166.0,62152.0,0.38206149]
[1724769795378,0.381773,62166.0,62154.0,0.3618]
[1724769795623,0.381773,62166.0,62156.0,0.3618]
[1724769795865,0.381773,62166.0,62157.0,0.2631826]
[1724769797034,0.381773,62166.0,62158.0,0.3846]
[1724769797258,0.376773,62166.0,62159.0,0.2631826]
[1724769797790,0.376773,62166.0,62160.0,0.563]
[1724769798033,0.376773,62166.0,62161.0,0.26318256]
[1724769798287,0.376773,62166.0,62165.0,1.42904749]
[1724769798515,0.0009053,62173.0,62172.0,0.22309604]
[1724769798754,0.0009053,62173.0,62172.0,1.06709597]
[1724769799029,0.0009053,62173.0,62172.0,1.25093997]
[1724769799740,0.0009053,62173.0,62172.0,1.09009597]
[1724769799963,0.0009053,62173.0,62172.0,1.11809597]
[1724769800403,0.0009053,62173.0,62172.0,1.10409597]
[1724769801106,0.0009053,62173.0,62172.0,1.11809597]
[1724769801622,0.0009053,62173.0,62172.0,1.13242305]
[1724769802044,0.0009053,62173.0,62172.0,1.11742305]
[1724769802773,0.0009053,62173.0,62172.0,1.1000047]
[1724769803448,0.0009053,62173.0,62172.0,1.1140047]
[1724769803952,0.0009053,62173.0,62172.0,1.1000047]
[1724769804224,0.0009053,62173.0,62172.0,1.1140047]
[1724769804483,0.0009053,62173.0,62172.0,1.0860047]
[1724769805626,0.0009053,62173.0,62172.0,1.1000047]
[1724769805854,0.00090421,62198.0,62191.0,0.321989]
[1724769806069,0.00090421,62198.0,62197.0,0.38206149]
[1724769806303,0.00090421,62198.0,62197.0,0.97596149]
[1724769806543,0.48029634,62219.0,62197.0,0.97596149]
[1724769806544,0.0004,62219.0,62204.0,0.160759]
[1724769806811,0.001,62219.0,62206.0,0.15996545]
[1724769807045,0.001,62219.0,62207.0,0.023]
[1724769807261,0.001,62219.0,62207.0,0.28296545]
[1724769807920,0.0004,62219.0,62207.0,0.64976545]
[1724769808140,0.001,62219.0,62207.0,0.64976545]
[1724769809303,0.001,62219.0,62207.0,0.66376545]
[1724769810822,0.001,62219.0,62207.0,0.67796302]
[1724769811544,0.001,62219.0,62207.0,0.69196302]
[1724769813146,0.001,62219.0,62207.0,0.70101602]
[1724769813832,0.001,62219.0,62207.0,0.68301602]
[1724769814073,0.0006,62216.0,62207.0,0.67401602]
[1724769814332,0.001502,62208.0,62207.0,0.05219757]
[1724769814578,0.001502,62208.0,62207.0,0.038]
[1724769814834,0.716353,62208.0,62207.0,0.038]
[1724769815063,0.555602,62208.0,62207.0,0.024]
[1724769815554,0.555602,62208.0,62207.0,0.038]
[1724769815796,0.555602,62208.0,62207.0,0.01]
[1724769816030,0.555602,62208.0,62207.0,0.024]
[1724769816511,0.555602,62208.0,62207.0,0.01]
[1724769817051,0.555602,62208.0,62207.0,0.013]
[1724769817307,0.555602,62208.0,62207.0,0.022]
[1724769817547,0.555602,62208.0,62207.0,0.019]
[1724769817770,0.555602,62208.0,62207.0,0.01]
[1724769818702,1.037862,62208.0,62207.0,0.01]
[1724769818925,1.037862,62208.0,62207.0,0.014]
[1724769819153,1.037862,62208.0,62207.0,0.015]
[1724769819379,1.037862,62208.0,62207.0,0.011]
[1724769819866,1.037862,62208.0,62207.0,0.016]
[1724769820595,0.483762,62208.0,62207.0,0.016]
[1724769821565,0.483162,62208.0,62207.0,0.17596545]
[1724769821777,0.483162,62208.0,62207.0,0.27596545]
[1724769822505,0.483162,62208.0,62207.0,0.26996545]
[1724769822722,0.483162,62208.0,62207.0,0.27796545]
[1724769822946,0.483162,62208.0,62207.0,0.67426545]
[1724769823472,0.483162,62208.0,62207.0,0.66826545]
[1724769823711,0.483162,62208.0,62207.0,0.28496545]
[1724769823930,0.483162,62208.0,62207.0,0.28296545]
[1724769824383,0.483162,62208.0,62207.0,0.29196545]
[1724769825981,0.483162,62208.0,62207.0,0.88016545]
[1724769826215,0.483162,62208.0,62207.0,0.90316545]
[1724769826883,0.483162,62208.0,62207.0,0.89016545]
[1724769827104,0.483162,62208.0,62207.0,0.88116545]
[1724769827567,0.483162,62208.0,62207.0,0.89516545]
[1724769827799,0.483162,62208.0,62207.0,0.88116545]
[1724769828022,0.483162,62208.0,62207.0,0.89516545]
[1724769828267,0.483162,62208.0,62207.0,0.88616545]
[1724769828487,0.483162,62208.0,62207.0,0.87216545]
[1724769829098,0.483162,62208.0,62207.0,0.89516545]
[1724769830260,0.483162,62208.0,62207.0,0.89520545]
[1724769830479,0.483162,62208.0,62207.0,0.90920545]
[1724769830705,0.483162,62208.0,62207.0,0.89520545]
[1724769831139,0.483162,62208.0,62207.0,0.90920545]
[1724769834463,0.483162,62208.0,62207.0,0.89520545]
[1724769834674,0.483162,62208.0,62207.0,0.90920545]
[1724769834900,0.483162,62208.0,62207.0,0.89520545]
[1724769835335,0.483162,62208.0,62207.0,0.68030545]
[1724769836028,0.483162,62208.0,62207.0,0.69430545]
[1724769836462,0.483162,62208.0,62207.0,0.68030545]
[1724769837102,0.483162,62208.0,62207.0,0.66630545]
[1724769837347,0.483162,62208.0,62207.0,0.68030545]
[1724769837787,0.483162,62208.0,62207.0,0.66630545]
[1724769838001,0.483162,62208.0,62207.0,0.68030545]
[1724769839069,0.483162,62208.0,62207.0,0.71730545]
[1724769840222,0.483162,62208.0,62207.0,0.70330545]
[1724769840438,0.483162,62208.0,62207.0,0.68030545]
[1724769840853,0.483162,62208.0,62207.0,0.69430545]
[1724769841276,0.483162,62208.0,62207.0,0.68030545]
[1724769841461,0.483162,62208.0,62207.0,0.69430545]
[1724769841923,0.483162,62208.0,62207.0,0.86040545]
[1724769842143,0.483162,62208.0,62207.0,0.88340545]
[1724769842420,0.483162,62208.0,62207.0,0.89740545]
[1724769843071,0.483162,62208.0,62207.0,0.88340545]
[1724769843288,0.483162,62208.0,62207.0,0.94779545]
[1724769843499,0.483162,62208.0,62207.0,0.96179545]
[1724769843935,0.483162,62208.0,62207.0,0.94779545]
[1724769844151,0.483162,62208.0,62207.0,0.96179545]
[1724769845692,0.483162,62208.0,62207.0,0.94779545]
[1724769846989,0.483162,62208.0,62207.0,0.93379545]
[1724769847203,0.483162,62208.0,62207.0,0.94779545]
[1724769847444,0.483162,62208.0,62207.0,0.96179545]
[1724769847653,0.483162,62208.0,62207.0,0.94779545]
[1724769847864,0.483162,62208.0,62207.0,1.01983559]
[1724769848086,0.483162,62208.0,62207.0,0.94779545]
[1724769848297,0.483162,62208.0,62207.0,1.37637771]
[1724769848511,0.483162,62208.0,62207.0,1.31831512]
[1724769848744,0.483162,62208.0,62207.0,1.30431512]
[1724769848955,0.483162,62208.0,62207.0,1.29071512]
[1724769849159,0.3400939,62208.0,62207.0,1.30471512]
[1724769849375,0.3400939,62208.0,62207.0,1.37679614]
[1724769850011,0.3400939,62208.0,62207.0,0.94819545]
[1724769850223,0.3400939,62208.0,62207.0,0.99626252]
[1724769850439,0.3400939,62208.0,62207.0,0.93419545]
[1724769850858,0.3400939,62208.0,62207.0,0.96219545]
[1724769851072,0.3400939,62208.0,62207.0,0.94819545]
[1724769851306,0.3400939,62208.0,62207.0,0.93419545]
[1724769851533,0.3400939,62208.0,62207.0,0.99630234]
[1724769851781,0.3400939,62208.0,62207.0,0.99630109]
[1724769852701,0.3400939,62208.0,62207.0,1.01030109]
[1724769853168,0.3400939,62208.0,62207.0,0.96219545]
[1724769854021,0.3400939,62208.0,62207.0,0.94819545]
[1724769854244,0.34099811,62208.0,62207.0,0.94819545]
[1724769854456,0.34099811,62208.0,62207.0,0.96219545]
[1724769854672,0.34099811,62208.0,62207.0,0.96179545]
[1724769854850,0.34099811,62208.0,62207.0,0.96219545]
[1724769855124,0.34099811,62208.0,62207.0,0.96179545]
[1724769855770,0.34099811,62208.0,62207.0,0.86179545]
[1724769855989,0.53339811,62208.0,62207.0,0.19800545]
[1724769856204,0.71849811,62208.0,62207.0,0.03804]
[1724769857267,0.71849811,62208.0,62207.0,0.01004]
[1724769857481,0.71849811,62208.0,62207.0,0.01104]
[1724769857707,0.71849811,62208.0,62207.0,0.01004]
[1724769857934,0.71849811,62208.0,62207.0,0.02404]
[1724769858148,0.71849811,62208.0,62207.0,0.02704]
[1724769858353,0.71849811,62208.0,62207.0,0.02404]
[1724769858560,0.71849811,62208.0,62207.0,0.01004]
[1724769858780,0.71849811,62208.0,62207.0,0.01904]
[1724769859016,0.79125322,62208.0,62207.0,0.01604]
[1724769859227,1.01334926,62208.0,62207.0,0.01604]
[1724769859679,1.03853261,62208.0,62207.0,0.01604]
[1724769860105,1.03853261,62208.0,62207.0,0.01004]
[1724769860563,0.74368146,62208.0,62207.0,0.01304]
[1724769860769,0.74368146,62208.0,62207.0,0.01004]
[1724769860950,0.74368146,62208.0,62207.0,0.01604]
[1724769861410,0.74368146,62208.0,62207.0,0.01004]
[1724769864071,0.55918146,62208.0,62207.0,0.01204]
[1724769864284,0.53399811,62208.0,62207.0,0.01204]
[1724769864504,0.53399811,62208.0,62207.0,0.01104]
[1724769864927,0.53399811,62208.0,62207.0,0.01604]
[1724769865343,0.53399811,62208.0,62207.0,0.01004]
[1724769865777,0.53399811,62208.0,62207.0,0.02304]
[1724769865999,0.53399811,62208.0,62207.0,0.023862]
[1724769866921,0.53399811,62208.0,62207.0,0.010862]
[1724769867357,0.34159811,62208.0,62207.0,0.030862]
[1724769867576,0.34159811,62208.0,62207.0,0.022862]
[1724769867792,0.34159811,62208.0,62207.0,0.010862]
[1724769868084,0.34159811,62208.0,62207.0,0.019862]
[1724769868296,0.34159811,62208.0,62207.0,0.032862]
[1724769870862,0.34099811,62208.0,62207.0,0.032862]
[1724769871292,0.34159811,62208.0,62207.0,0.032862]
[1724769873435,0.34159811,62208.0,62207.0,0.03256819]
[1724769877381,0.31159811,62208.0,62207.0,0.03256819]
[1724769884040,0.31159811,62208.0,62207.0,0.19253364]
[1724769884041,0.31099811,62208.0,62207.0,0.19253364]
[1724769884265,0.31099811,62208.0,62207.0,0.29253364]
[1724769884680,0.29099811,62208.0,62207.0,0.29253364]
[1724769886596,0.29099811,62208.0,62207.0,0.47253364]
[1724769887458,0.29099811,62208.0,62207.0,0.71483364]
[1724769887666,0.29099811,62208.0,62207.0,0.73224577]
[1724769888311,0.29099811,62208.0,62207.0,0.71353958]
[1724769888780,0.29099811,62208.0,62207.0,0.72353885]
[1724769888990,0.29099811,62208.0,62207.0,0.71353885]
[1724769889199,0.29099811,62208.0,62207.0,0.71453885]
[1724769889613,0.29099811,62208.0,62207.0,0.72853885]
[1724769890075,0.29099811,62208.0,62207.0,0.71453885]
[1724769890544,0.29099811,62208.0,62207.0,0.371162]
[1724769890758,0.29159811,62208.0,62207.0,0.128862]
[1724769890972,0.29099811,62208.0,62207.0,0.100862]
[1724769891205,0.29159811,62208.0,62207.0,0.100862]
[1724769891436,0.29159811,62208.0,62207.0,0.114862]
[1724769891695,0.29159811,62208.0,62207.0,0.100862]
[1724769891914,0.29099811,62208.0,62207.0,0.100862]
[1724769892128,0.29099811,62208.0,62207.0,0.014862]
[1724769892340,0.29099811,62208.0,62207.0,0.028862]
[1724769892559,0.29099811,62208.0,62207.0,0.18882745]
[1724769892893,0.29099811,62208.0,62207.0,0.27482745]
[1724769893750,0.29099811,62208.0,62207.0,0.52972745]
[1724769895525,0.29080464,62208.0,62207.0,0.52972745]
[1724769895868,0.29080464,62208.0,62207.0,0.50172745]
[1724769896118,0.29080464,62208.0,62207.0,0.51572745]
[1724769896311,0.29080464,62208.0,62207.0,0.52972745]
[1724769898007,0.29080464,62208.0,62207.0,1.86110145]
[1724769898262,0.29080464,62208.0,62207.0,1.21768745]
[1724769898487,0.29080464,62208.0,62207.0,1.21808745]
[1724769898985,0.29080464,62208.0,62207.0,0.69842745]
[1724769899443,0.29080464,62208.0,62207.0,0.71242745]
[1724769899647,0.29080464,62208.0,62207.0,0.69842745]
[1724769900583,0.29080464,62208.0,62207.0,0.72142745]
[1724769900824,0.29080464,62208.0,62207.0,0.86818045]
[1724769901059,0.29080464,62208.0,62207.0,0.88218045]
[1724769901289,0.29080464,62208.0,62207.0,0.72142745]
[1724769901728,0.29080464,62208.0,62207.0,1.20368745]
[1724769901979,0.29080464,62208.0,62207.0,1.53919445]
[1724769902204,0.29080464,62208.0,62207.0,1.52519445]
[1724769902409,0.29080464,62208.0,62207.0,1.93998069]
[1724769902621,0.29080464,62208.0,62207.0,1.96906691]
[1724769903042,0.29080464,62208.0,62207.0,1.9811406]
[1724769903255,0.29080464,62208.0,62207.0,1.9951406]
[1724769903465,0.29080464,62208.0,62207.0,1.53726814]
[1724769903682,0.29080464,62208.0,62207.0,1.55126814]
[1724769903937,0.29080464,62208.0,62207.0,1.85877516]
[1724769904177,0.17796864,62208.0,62207.0,2.20171593]
[1724769904403,0.000902,62214.0,62213.0,0.588438]
[1724769904628,0.000902,62214.0,62213.0,1.78455662]
[1724769904829,0.000902,62214.0,62213.0,2.07000118]
[1724769905485,0.000902,62214.0,62213.0,2.11808175]
[1724769906126,0.000902,62214.0,62213.0,2.07000118]
[1724769906393,0.000902,62214.0,62213.0,2.11808281]
[1724769906615,0.000902,62214.0,62213.0,2.07000118]
[1724769906860,0.000902,62214.0,62213.0,2.08400118]
[1724769907075,0.000902,62214.0,62213.0,2.09800118]
[1724769907935,0.00904201,62218.0,62217.0,1.559192]
[1724769908173,0.00904201,62218.0,62217.0,1.85422819]
[1724769908403,0.00904201,62218.0,62217.0,1.84215745]
[1724769909544,0.00904201,62218.0,62217.0,1.85615745]
[1724769909770,0.00904201,62218.0,62217.0,0.89139245]
[1724769910038,0.00904201,62218.0,62217.0,0.70766545]
[1724769910270,0.00904201,62218.0,62217.0,0.72166545]
[1724769910479,0.00904201,62218.0,62217.0,0.69366545]
[1724769910712,0.00904201,62218.0,62217.0,0.72166545]
[1724769911131,0.00904201,62218.0,62217.0,0.70766545]
[1724769911352,0.00904201,62218.0,62217.0,1.52530245]
[1724769911568,0.00904201,62218.0,62217.0,0.88239245]
[1724769911779,0.00904201,62218.0,62217.0,1.22684745]
[1724769912700,0.00904201,62218.0,62217.0,1.54830245]
[1724769913331,0.00904201,62218.0,62217.0,1.53430245]
[1724769913764,0.00904201,62218.0,62217.0,1.54830245]
[1724769914230,0.00904201,62218.0,62217.0,1.87015745]
[1724769916550,0.00904201,62218.0,62217.0,1.54830245]
[1724769916975,0.00904201,62218.0,62217.0,0.90539245]
[1724769917200,0.19434201,62218.0,62217.0,0.18796545]
[1724769917407,0.19434201,62218.0,62217.0,0.028]
[1724769917408,0.19494201,62218.0,62217.0,0.028]
[1724769918073,0.0006,62208.0,62205.0,0.01408795]
[1724769918290,0.1918,62208.0,62205.0,0.01408795]
[1724769920864,0.1918,62208.0,62207.0,0.014862]
[1724769921532,0.1918,62208.0,62207.0,0.028862]
[1724769924291,0.21098,62208.0,62207.0,0.028862]
[1724769924499,0.1918,62208.0,62207.0,0.028862]
[1724769925184,0.1918,62208.0,62207.0,0.014862]
[1724769925394,0.1918,62208.0,62207.0,0.006862]
[1724769926042,0.1918,62208.0,62207.0,0.000862]
[1724769926675,0.1918,62208.0,62207.0,0.003862]
[1724769926918,1.20684935,62208.0,62207.0,0.003862]
[1724769927160,1.20684935,62208.0,62207.0,0.000862]
[1724769927161,1.42894539,62208.0,62207.0,0.000862]
[1724769927622,1.91220539,62208.0,62207.0,0.000862]
[1724769927829,1.91120539,62208.0,62207.0,0.002862]
[1724769928078,2.28052252,62208.0,62207.0,0.002862]
[1724769928323,0.482907,62201.0,62200.0,0.000822]
[1724769928560,1.21333245,62201.0,62200.0,0.000822]
[1724769929023,1.23852181,62201.0,62200.0,0.000822]
[1724769929258,1.56005981,62201.0,62200.0,0.000822]
[1724769929948,1.56105981,62201.0,62200.0,0.000822]
[1724769930181,1.72102526,62201.0,62200.0,0.000822]
[1724769930390,0.59624936,62201.0,62200.0,0.000822]
[1724769930794,0.59624936,62201.0,62200.0,0.005822]
[1724769931002,0.59624936,62201.0,62200.0,0.009822]
[1724769931423,0.59924936,62201.0,62200.0,0.010822]
[1724769931834,0.59624936,62201.0,62200.0,0.009822]
[1724769932081,0.6719504,62201.0,62200.0,0.009822]
[1724769932285,0.6719504,62201.0,62200.0,0.002822]
[1724769932492,0.59624936,62201.0,62200.0,0.002822]
[1724769933155,0.9801144,62201.0,62200.0,0.000822]
[1724769933384,1.43642849,62201.0,62200.0,0.000822]
[1724769933592,1.75796649,62201.0,62200.0,0.000822]
[1724769933794,2.24346994,62201.0,62200.0,0.000822]
[1724769934012,2.23946994,62201.0,62200.0,0.000822]
[1724769934475,2.24146994,62201.0,62200.0,0.000822]
[1724769934703,0.0006,62180.0,62179.0,0.1]
[1724769934923,0.0006,62180.0,62174.0,0.2172]
[1724769934924,0.48286,62180.0,62175.0,0.1]
[1724769935356,0.0006,62176.0,62175.0,0.1]
[1724769935572,0.0006,62176.0,62169.0,0.2172]
[1724769935573,0.48286,62176.0,62169.0,0.2172]
[1724769935803,0.0006,62172.0,62171.0,0.01405124]
[1724769936019,0.48286,62172.0,62170.0,0.1]
[1724769936277,0.0006,62170.0,62169.0,0.2172]
[1724769936524,0.48286,62170.0,62169.0,0.23147599]
[1724769936959,0.48286,62170.0,62169.0,0.2172]
[1724769937640,0.48286,62170.0,62169.0,0.31684782]
[1724769938061,0.48286,62170.0,62169.0,0.32984782]
[1724769938511,0.48286,62170.0,62169.0,0.34384782]
[1724769943030,0.48226,62170.0,62169.0,0.50381327]
[1724769944839,0.48286,62170.0,62169.0,0.34384782]
[1724769945514,0.48226,62170.0,62169.0,0.50381327]
[1724769947346,0.48226,62170.0,62169.0,0.50463527]
[1724769948561,0.48206652,62170.0,62169.0,0.50463527]
[1724769949883,0.48206652,62170.0,62169.0,0.90953131]
[1724769950093,0.48206652,62170.0,62169.0,0.68743527]
[1724769950508,0.48206652,62170.0,62169.0,0.67343527]
[1724769950717,0.48206652,62170.0,62169.0,0.66043527]
[1724769950922,0.48206652,62170.0,62169.0,0.67443527]
[1724769951164,0.48206652,62170.0,62169.0,0.68743527]
[1724769952037,0.48206652,62170.0,62169.0,0.49063527]
[1724769952441,0.48206652,62170.0,62169.0,0.49163527]
[1724769952825,0.48206652,62170.0,62169.0,0.50563527]
[1724769953640,0.48206652,62170.0,62169.0,0.47763527]
[1724769954087,0.48206652,62170.0,62169.0,0.50363527]
[1724769954220,0.48206652,62170.0,62169.0,0.49163527]
[1724769954422,0.48206652,62170.0,62169.0,0.47763527]
[1724769954805,0.48206652,62170.0,62169.0,0.49163527]
[1724769955451,0.48206652,62170.0,62169.0,0.47763527]
[1724769955651,0.48206652,62170.0,62169.0,0.50263527]
[1724769956254,0.48206652,62170.0,62169.0,0.52005522]
[1724769956639,0.48206652,62170.0,62169.0,0.50905522]
[1724769956952,0.48206652,62170.0,62169.0,0.52305522]
[1724769957108,0.48206652,62170.0,62169.0,0.49505525]
[1724769957304,0.48206652,62170.0,62169.0,0.50905525]
[1724769957538,0.48206652,62170.0,62169.0,0.52305525]
[1724769958330,0.48206652,62170.0,62169.0,0.50905525]
[1724769958533,0.48206652,62170.0,62169.0,0.52305525]
[1724769958916,0.48206652,62170.0,62169.0,0.50905525]
[1724769959137,0.48206652,62170.0,62169.0,0.52305525]
[1724769960241,0.48206652,62170.0,62169.0,0.52292561]
[1724769960467,0.48206652,62170.0,62169.0,0.84717661]
[1724769960696,0.48206652,62170.0,62169.0,0.84217661]
[1724769960928,0.48206652,62170.0,62169.0,1.17787961]
[1724769961181,0.48206652,62170.0,62169.0,1.17445963]
[1724769961421,0.48206652,62170.0,62169.0,0.8701753]
[1724769961630,0.48206652,62170.0,62169.0,0.8561753]
[1724769961841,0.48206652,62170.0,62169.0,0.8701753]
[1724769962053,0.48206652,62170.0,62169.0,1.1918783]
[1724769962273,0.48206652,62170.0,62169.0,0.8561753]
[1724769962448,0.48206652,62170.0,62169.0,1.1918783]
[1724769962651,0.48206652,62170.0,62169.0,0.8701753]
[1724769962826,0.48206652,62170.0,62169.0,0.6953243]
[1724769963230,0.48206652,62170.0,62169.0,0.7093243]
[1724769963951,0.48206652,62170.0,62169.0,0.50550563]
[1724769964154,0.48206652,62170.0,62169.0,0.52292469]
[1724769965569,0.48266652,62170.0,62169.0,0.128822]
[1724769965796,0.48266652,62170.0,62169.0,0.028822]
[1724769966509,0.64996652,62170.0,62169.0,0.028822]
[1724769967253,0.64996652,62170.0,62169.0,0.014822]
[1724769967502,0.64996652,62170.0,62169.0,0.028822]
[1724769967791,0.81081552,62170.0,62169.0,0.028822]
[1724769968006,0.67514884,62170.0,62169.0,0.014822]
[1724769968235,0.95789063,62170.0,62169.0,0.014822]
[1724769968466,0.98309008,62170.0,62169.0,0.025822]
[1724769968701,0.98309008,62170.0,62169.0,0.011822]
[1724769968932,0.98309008,62170.0,62169.0,0.019822]
[1724769969159,0.98309008,62170.0,62169.0,0.011822]
[1724769969610,0.98409008,62170.0,62169.0,0.011822]
[1724769969833,0.98309008,62170.0,62169.0,0.000822]
[1724769970057,0.98399429,62170.0,62169.0,0.000822]
[1724769970385,0.7032525,62170.0,62169.0,0.000822]
[1724769970829,0.7032525,62170.0,62169.0,0.002822]
[1724769971282,0.7032525,62170.0,62169.0,0.000822]
[1724769971283,0.67805305,62170.0,62169.0,0.000822]
[1724769971702,0.65087073,62170.0,62169.0,0.000822]
[1724769972125,0.65187073,62170.0,62169.0,0.000822]
[1724769972332,0.48357073,62170.0,62169.0,0.000822]
[1724769972584,0.48457073,62170.0,62169.0,0.000822]
[1724769973064,0.48357073,62170.0,62169.0,0.000822]
[1724769973298,0.48357073,62170.0,62169.0,0.002822]
[1724769973770,0.48357073,62170.0,62169.0,0.000822]
[1724769974128,0.5319278,62170.0,62169.0,0.005822]
[1724769974372,0.48357073,62170.0,62169.0,0.005822]
[1724769974714,0.48357073,62170.0,62169.0,0.007822]
[1724769980469,0.48357073,62170.0,62169.0,0.002822]
[1724769980879,0.48357073,62170.0,62169.0,0.006822]
[1724769981134,0.48297073,62170.0,62169.0,0.396922]
[1724769981359,0.48297073,62170.0,62169.0,0.392922]
[1724769981870,0.48297073,62170.0,62169.0,0.396922]